bitfinex-derivatives/quotes_SOLF0:USTF0_20250101
["timestamp","ask_amount","ask_price","bid_price","bid_amount"]
[1735754011675,1.5683,190.25,190.18,7.69843043]
[1735754011876,2.6339,190.23,190.18,7.69843043]
[1735754012277,7.69843043,190.24,190.18,7.69843043]
[1735754012982,7.69843043,190.24,190.04,7.32621201]
[1735754013184,7.69843043,190.2,190.14,7.69843043]
[1735754013382,10.67843043,190.2,190.14,7.69843043]
[1735754013782,2.6345,190.18,190.14,7.69843043]
[1735754014982,2.6344,190.19,190.16,7.69843043]
[1735754015187,10.80363043,190.22,190.16,7.69843043]
[1735754015681,3.1052,190.22,190.18,7.69843043]
[1735754017390,5.7391,190.22,190.18,7.69843043]
[1735754018697,3.1052,190.22,190.18,7.69843043]
[1735754018899,2.6337,190.23,190.2,7.69843043]
[1735754019995,7.69843043,190.24,190.03,31.82385643]
[1735754020197,10.84733043,190.24,190.17,7.69843043]
[1735754021398,2.6339,190.22,190.17,7.69843043]
[1735754028000,2.6341,190.21,190.17,7.69843043]
[1735754030200,2.6341,190.21,190.19,7.69843043]
[1735754032302,2.6338,190.23,190.19,7.69843043]
[1735754032492,2.6338,190.23,190.21,7.69843043]
[1735754032698,3.1489,190.24,190.21,7.69843043]
[1735754033398,5.7825,190.24,190.21,7.69843043]
[1735754033897,3.1489,190.24,190.21,7.69843043]
[1735754034103,2.6335,190.25,190.23,7.69843043]
[1735754034996,2.98,190.28,190.23,7.69843043]
[1735754035199,14.24514969,190.31,190.25,7.69843043]
[1735754035398,17.22514969,190.31,190.25,7.69843043]
[1735754035600,4.5743,190.31,190.25,7.69843043]
[1735754035801,2.6328,190.3,190.25,7.69843043]
[1735754040708,2.6328,190.3,190.27,7.69843043]
[1735754041607,2.6328,190.3,190.23,2.98]
[1735754041811,2.6328,190.3,190.28,7.69843043]
[1735754042309,4.5743,190.31,190.28,7.69843043]
[1735754042511,10.5817675,190.42,190.3,7.69843043]
[1735754042811,7.69843043,190.38,190.32,7.69843043]
[1735754043201,2.6323,190.34,190.32,7.69843043]
[1735754043405,7.69843043,190.38,190.32,7.69843043]
[1735754043605,2.98,190.37,190.32,7.69843043]
[1735754043803,2.6322,190.35,190.32,7.69843043]
[1735754045409,5.6119,190.37,190.32,7.69843043]
[1735754045616,2.6319,190.37,190.34,7.69843043]
[1735754046715,2.632,190.36,190.34,7.69843043]
[1735754047506,7.69843043,190.38,190.3,2.98]
[1735754047813,7.69843043,190.38,190.32,7.69843043]
[1735754048014,2.6322,190.35,190.32,7.69843043]
[1735754048206,7.69843043,190.38,190.32,7.69843043]
[1735754048408,7.69843043,190.38,190.3,7.69843043]
[1735754048609,2.6324,190.33,190.3,7.69843043]
[1735754049313,2.6319,190.37,190.3,7.69843043]
[1735754049511,7.69843043,190.38,190.32,7.69843043]
[1735754050111,2.632,190.36,190.32,7.69843043]
[1735754051010,2.632,190.36,190.26,2.98]
[1735754051217,2.632,190.36,190.32,7.69843043]
[1735754052517,2.632,190.36,190.34,7.69843043]
[1735754052721,2.6318,190.37,190.34,7.69843043]
[1735754052909,3.0788,190.4,190.34,7.69843043]
[1735754053109,3.0788,190.4,190.36,7.69843043]
[1735754053313,2.6316,190.39,190.36,7.69843043]
[1735754054918,1.5951,190.4,190.36,7.69843043]
[1735754055218,4.2265,190.4,190.36,7.69843043]
[1735754056414,1.5951,190.4,190.36,7.69843043]
[1735754056616,1.5951,190.4,190.38,7.69843043]
[1735754059624,2.6313,190.41,190.38,7.69843043]
[1735754060225,1.5692,190.45,190.4,7.69843043]
[1735754060417,7.69843043,190.48,190.42,7.69843043]
[1735754060622,10.67843043,190.48,190.42,7.69843043]
[1735754060821,7.69843043,190.48,190.42,7.69843043]
[1735754061127,10.67843043,190.5,190.42,7.69843043]
[1735754061529,20.33031492,190.5,190.42,7.69843043]
[1735754061723,2.6304,190.47,190.42,7.69843043]
[1735754062021,10.67843043,190.5,190.42,7.69843043]
[1735754062230,2.6303,190.48,190.44,7.69843043]
[1735754062528,2.6303,190.48,190.26,34.55574744]
[1735754062529,7.69843043,190.49,190.39,2.98]
[1735754062821,7.69843043,190.49,190.42,7.69843043]
[1735754063522,2.6306,190.46,190.42,7.69843043]
[1735754064925,7.69843043,190.49,190.42,7.69843043]
[1735754065729,2.6308,190.45,190.42,7.69843043]
[1735754066029,7.69843043,190.49,190.42,7.69843043]
[1735754066222,2.6307,190.46,190.42,7.69843043]
[1735754067428,7.69843043,190.49,190.42,7.69843043]
[1735754067624,2.6307,190.45,190.42,7.69843043]
[1735754069721,2.6303,190.48,190.42,7.69843043]
[1735754069924,2.6303,190.48,190.44,7.69843043]
[1735754071933,2.6305,190.47,190.44,7.69843043]
[1735754072129,7.69843043,190.49,190.42,7.69843043]
[1735754072535,2.6308,190.45,190.42,7.69843043]
[1735754074736,7.69843043,190.49,190.42,7.69843043]
[1735754074937,2.6309,190.44,190.42,7.69843043]
[1735754076637,2.6307,190.45,190.42,7.69843043]
[1735754078840,10.67843043,190.5,190.42,7.69843043]
[1735754079043,2.6305,190.47,190.42,7.69843043]
[1735754079941,2.6306,190.46,190.42,7.69843043]
[1735754080843,2.6307,190.45,190.42,7.69843043]
[1735754081141,7.69843043,190.46,190.4,7.69843043]
[1735754081440,1.484,190.45,190.38,7.69843043]
[1735754082140,2.631,190.43,190.38,7.69843043]
[1735754082334,1.484,190.45,190.38,7.69843043]
[1735754082739,1.484,190.45,190.4,7.69843043]
[1735754083145,2.631,190.43,190.4,7.69843043]
[1735754083335,1.484,190.45,190.4,7.69843043]
[1735754083842,2.631,190.44,190.4,7.69843043]
[1735754085847,1.484,190.45,190.36,2.98]
[1735754086145,7.69843043,190.44,190.37,7.69843043]
[1735754086337,2.6311,190.42,190.37,7.69843043]
[1735754087251,2.6311,190.42,190.39,7.69843043]
[1735754089153,1.5047,190.44,190.4,7.69843043]
[1735754089351,4.1357,190.44,190.4,7.69843043]
[1735754090844,1.5047,190.44,190.4,7.69843043]
[1735754091054,1.5047,190.44,190.38,7.69843043]
[1735754091355,4.4847,190.44,190.38,7.69843043]
[1735754091652,12.18313043,190.44,190.34,2.98]
[1735754091852,2.6318,190.37,190.36,7.69843043]
[1735754094048,2.6318,190.37,190.34,7.69843043]
[1735754098852,2.6319,190.36,190.34,7.69843043]
[1735754099362,2.6322,190.34,190.32,7.69843043]
[1735754100356,7.69843043,190.38,190.32,7.69843043]
[1735754100555,2.632,190.36,190.32,7.69843043]
[1735754104758,2.6317,190.38,190.34,7.69843043]
[1735754105462,2.6316,190.39,190.36,7.69843043]
[1735754106260,17.37738654,190.43,190.36,7.69843043]
[1735754106562,12.65895611,190.43,190.38,7.69843043]
[1735754106765,2.98,190.43,190.38,7.69843043]
[1735754107064,12.65895611,190.43,190.38,7.69843043]
[1735754107255,2.6313,190.41,190.38,7.69843043]
[1735754107659,9.67895611,190.43,190.38,7.69843043]
[1735754107860,4.4847,190.44,190.38,7.69843043]
[1735754108060,14.16365611,190.44,190.38,7.69843043]
[1735754108462,2.6311,190.42,190.38,7.69843043]
[1735754112562,4.4847,190.44,190.38,7.69843043]
[1735754112767,2.6313,190.41,190.38,7.69843043]
[1735754115557,2.6311,190.42,190.38,7.69843043]
[1735754117068,10.32953043,190.43,190.38,7.69843043]
[1735754117268,7.69843043,190.43,190.36,7.69843043]
[1735754118065,2.6317,190.39,190.36,7.69843043]
[1735754118865,2.6317,190.38,190.36,7.69843043]
[1735754119669,2.6318,190.37,190.34,7.69843043]
[1735754120472,10.67843043,190.39,190.32,7.69843043]
[1735754121066,2.6321,190.36,190.31,7.69843043]
[1735754121474,2.6322,190.35,190.31,7.69843043]
[1735754124969,10.67843043,190.39,190.31,7.69843043]
[1735754125175,2.6319,190.37,190.31,7.69843043]
[1735754125376,10.67843043,190.39,190.31,7.69843043]
[1735754125771,2.632,190.36,190.31,7.69843043]
[1735754127974,20.37993044,190.39,190.33,7.69843043]
[1735754128277,2.6319,190.37,190.33,7.69843043]
[1735754130583,10.67843043,190.39,190.33,7.69843043]
[1735754130584,2.6321,190.36,190.33,7.69843043]
[1735754132185,9.70150001,190.39,190.35,7.69843043]
[1735754132377,9.70150001,190.43,190.37,7.69843043]
[1735754132582,11.20620001,190.44,190.39,7.69843043]
[1735754132887,2.6312,190.42,190.39,7.69843043]
[1735754136381,1.484,190.45,190.41,7.69843043]
[1735754136681,2.98,190.48,190.43,7.69843043]
[1735754137087,2.6307,190.46,190.43,7.69843043]
[1735754137277,2.98,190.49,190.43,7.69843043]
[1735754137685,5.6102,190.49,190.45,7.69843043]
[1735754138090,15.32231342,190.49,190.45,7.69843043]
[1735754138284,9.71211342,190.49,190.45,7.69843043]
[1735754138586,49.35591211,190.51,190.45,7.69843043]
[1735754138890,51.98581211,190.51,190.47,7.69843043]
[1735754139182,2.6299,190.51,190.47,7.69843043]
[1735754141190,2.6298,190.52,190.47,7.69843043]
[1735754141389,4.6225,190.54,190.49,7.69843043]
[1735754141691,1.6425,190.54,190.49,7.69843043]
[1735754142394,1.4831,190.57,190.51,7.69843043]
[1735754142581,7.69843043,190.58,190.51,7.69843043]
[1735754143290,2.6292,190.56,190.53,7.69843043]
[1735754145789,7.69843043,190.58,190.53,7.69843043]
[1735754145994,2.6291,190.57,190.53,7.69843043]
[1735754146285,7.69843043,190.58,190.53,7.69843043]
[1735754146689,7.69843043,190.58,190.51,7.69843043]
[1735754147392,2.6294,190.55,190.51,7.69843043]
[1735754147987,2.6292,190.56,190.53,7.69843043]
[1735754148187,10.67843043,190.6,190.53,7.69843043]
[1735754149396,2.6291,190.57,190.53,7.69843043]
[1735754151293,2.6288,190.59,190.53,7.69843043]
[1735754151493,2.6288,190.59,190.55,7.69843043]
[1735754152796,2.629,190.58,190.55,7.69843043]
[1735754153902,6.1452,190.61,190.55,7.69843043]
[1735754154202,2.6288,190.59,190.55,7.69843043]
[1735754154907,6.1452,190.61,190.55,7.69843043]
[1735754155094,2.6289,190.58,190.55,7.69843043]
[1735754155604,2.6286,190.6,190.57,7.69843043]
[1735754156000,2.98,190.63,190.57,7.69843043]
[1735754156602,2.6285,190.62,190.57,7.69843043]
[1735754156900,2.98,190.63,190.57,7.69843043]
[1735754157100,2.6288,190.59,190.57,7.69843043]
[1735754157703,7.69843043,190.62,190.55,7.69843043]
[1735754158293,2.6289,190.59,190.57,7.69843043]
[1735754158802,7.69843043,190.62,190.49,34.51465588]
[1735754159006,7.69843043,190.58,190.51,7.69843043]
[1735754159712,2.6293,190.55,190.51,7.69843043]
[1735754160413,10.67843043,190.58,190.51,7.69843043]
[1735754160609,2.6295,190.54,190.51,7.69843043]
[1735754160806,7.69843043,190.56,190.48,2.98]
[1735754161108,7.69843043,190.54,190.48,7.69843043]
[1735754162408,2.6298,190.52,190.48,7.69843043]
[1735754162908,7.69843043,190.54,190.43,2.98629343]
[1735754163105,2.6301,190.49,190.46,7.69843043]
[1735754170612,7.69843043,190.52,190.46,7.69843043]
[1735754170821,7.69843043,190.5,190.43,10.68472386]
[1735754171013,3.1379,190.49,190.43,10.68472386]
[1735754171620,2.6306,190.47,190.43,10.68472386]
[1735754171918,2.6306,190.47,190.43,7.69843043]
[1735754175218,2.6303,190.48,190.45,7.69843043]
[1735754175418,3.1379,190.49,190.45,7.69843043]
[1735754175812,2.6303,190.48,190.45,7.69843043]
[1735754178113,3.1379,190.49,190.45,7.69843043]
[1735754178312,2.6305,190.47,190.43,7.69843043]
[1735754178913,3.1379,190.49,190.43,7.69843043]
[1735754178914,2.6307,190.45,190.43,7.69843043]
[1735754179116,7.69843043,190.47,190.41,7.69843043]
[1735754179516,2.631,190.44,190.41,7.69843043]
[1735754180520,2.6311,190.43,190.39,7.69843043]
[1735754185929,2.6311,190.42,190.39,7.69843043]
[1735754186332,2.98,190.46,190.39,7.69843043]
[1735754186630,7.69843043,190.45,190.39,7.69843043]
[1735754186928,2.6313,190.41,190.39,7.69843043]
[1735754187129,2.6313,190.41,190.37,7.69843043]
[1735754187333,7.69843043,190.45,190.37,7.69843043]
[1735754187529,2.6315,190.4,190.37,7.69843043]
[1735754190826,7.69843043,190.43,190.23,29.30484804]
[1735754191031,7.69843043,190.41,190.24,2.98]
[1735754191231,10.67843043,190.41,190.34,7.69843043]
[1735754192426,2.6315,190.39,190.34,7.69843043]
[1735754192623,10.67843043,190.41,190.34,7.69843043]
[1735754193435,2.6315,190.39,190.34,7.69843043]
[1735754195636,2.98,190.41,190.34,7.69843043]
[1735754195837,2.6317,190.38,190.34,7.69843043]
[1735754196634,5.6114,190.41,190.36,7.69843043]
[1735754196838,2.6314,190.41,190.38,7.69843043]
[1735754198134,3.1707,190.42,190.36,7.69843043]
[1735754198332,10.86913043,190.42,190.36,7.69843043]
[1735754198841,2.6318,190.38,190.36,7.69843043]
[1735754201540,143.10552726,190.52,190.36,7.69843043]
[1735754201736,2.6313,190.41,190.38,7.69843043]
[1735754202035,2.98,190.44,190.38,7.69843043]
[1735754202439,2.6312,190.42,190.38,7.69843043]
[1735754203437,2.98,190.44,190.38,7.69843043]
[1735754203641,10.67843043,190.44,190.36,7.69843043]
[1735754203831,3.1364,190.43,190.36,7.69843043]
[1735754204340,7.69843043,190.4,190.34,7.69843043]
[1735754204736,9.27743043,190.42,190.34,7.69843043]
[1735754205541,2.6318,190.38,190.34,7.69843043]
[1735754207240,2.6318,190.37,190.34,7.69843043]
[1735754208439,2.6316,190.39,190.34,7.69843043]
[1735754211839,9.27743043,190.42,190.34,7.69843043]
[1735754212038,2.6317,190.38,190.34,7.69843043]
[1735754215347,2.6315,190.4,190.34,7.69843043]
[1735754215551,9.27743043,190.42,190.34,7.69843043]
[1735754216549,2.6316,190.39,190.34,7.69843043]
[1735754237163,2.6316,190.39,190.3,2.98]
[1735754237365,2.6317,190.38,190.3,2.98]
[1735754237669,2.6317,190.38,190.33,7.69843043]
[1735754237870,12.69080442,190.41,190.33,7.69843043]
[1735754238069,2.6316,190.39,190.33,7.69843043]
[1735754238869,2.6316,190.39,190.3,2.98]
[1735754239069,2.6316,190.39,190.33,7.69843043]
[1735754241971,2.6316,190.39,190.3,2.98]
[1735754242273,2.6316,190.39,190.32,7.69843043]
[1735754243778,18.3234062,190.4,190.28,2.98]
[1735754244075,2.6319,190.37,190.31,7.69843043]
[1735754244274,9.71080442,190.39,190.31,7.69843043]
[1735754244673,11.6485674,190.4,190.33,7.69843043]
[1735754244976,17.40923485,190.4,190.33,7.69843043]
[1735754245777,7.69843043,190.4,190.33,7.69843043]
[1735754245972,13.6033171,190.41,190.33,7.69843043]
[1735754246374,23.31412152,190.41,190.33,7.69843043]
[1735754246676,2.6317,190.38,190.33,7.69843043]
[1735754251175,3.95007074,190.4,190.3,2.98]
[1735754251176,9.71080442,190.41,190.35,7.69843043]
[1735754251380,12.34210442,190.41,190.35,7.69843043]
[1735754251578,2.6313,190.41,190.37,7.69843043]
[1735754251776,8.7474,190.43,190.37,7.69843043]
[1735754251974,25.1288342,190.43,190.37,7.69843043]
[1735754252276,9.71080442,190.42,190.37,7.69843043]
[1735754252780,9.71080442,190.42,190.35,2.98]
[1735754253081,9.71080442,190.42,190.4,7.69843043]
[1735754253275,2.6308,190.44,190.4,7.69843043]
[1735754254380,12.34160442,190.44,190.4,7.69843043]
[1735754254583,2.6308,190.44,190.4,7.69843043]
[1735754256276,2.6313,190.41,190.38,7.69843043]
[1735754256478,7.69843043,190.44,190.38,7.69843043]
[1735754256781,14.62766176,190.46,190.38,7.69843043]
[1735754256982,6.66700418,190.45,190.4,7.69843043]
[1735754257176,20.32703993,190.45,190.4,7.69843043]
[1735754257376,16.3778086,190.45,190.4,7.69843043]
[1735754257573,2.6309,190.44,190.4,7.69843043]
[1735754257778,2.6309,190.44,190.38,7.69843043]
[1735754258383,2.6311,190.43,190.38,7.69843043]
[1735754260182,16.3778086,190.45,190.38,7.69843043]
[1735754260388,2.6314,190.4,190.36,7.69843043]
[1735754265288,2.6313,190.41,190.38,7.69843043]
[1735754265482,7.69843043,190.44,190.38,7.69843043]
[1735754265483,21.29176538,190.46,190.38,7.69843043]
[1735754265680,10.61333495,190.45,190.38,7.69843043]
[1735754265886,20.32413937,190.45,190.38,7.69843043]
[1735754266086,2.6311,190.42,190.38,7.69843043]
[1735754266386,16.37489293,190.45,190.38,7.69843043]
[1735754267290,9.71080442,190.45,190.38,7.69843043]
[1735754267490,2.6309,190.44,190.38,7.69843043]
[1735754269789,9.71080442,190.45,190.38,7.69843043]
[1735754269993,10.67843043,190.46,190.38,7.69843043]
[1735754270389,31.00155844,190.46,190.38,7.69843043]
[1735754270590,10.61232359,190.45,190.38,7.69843043]
[1735754270794,20.32312801,190.45,190.38,7.69843043]
[1735754271094,16.37389972,190.45,190.38,7.69843043]
[1735754271493,2.6312,190.42,190.38,7.69843043]
[1735754273198,2.98,190.45,190.38,7.69843043]
[1735754273395,2.6313,190.41,190.38,7.69843043]
[1735754279106,7.69843043,190.44,190.33,2.98]
[1735754279107,3.94925653,190.45,190.4,7.69843043]
[1735754279308,13.66006095,190.5,190.44,7.69843043]
[1735754279609,9.71080442,190.5,190.44,7.69843043]
[1735754280399,12.34080442,190.5,190.44,7.69843043]
[1735754280606,2.63,190.5,190.44,7.69843043]
[1735754282797,2.6299,190.51,190.46,7.69843043]
[1735754283002,12.64262937,190.52,190.46,7.69843043]
[1735754283302,50.86829966,190.53,190.48,7.69843043]
[1735754284809,50.86829966,190.53,190.46,7.69843043]
[1735754284810,2.6299,190.51,190.46,7.69843043]
[1735754288510,61.54673009,190.53,190.46,7.69843043]
[1735754288707,7.69843043,190.51,190.46,7.69843043]
[1735754289210,12.19953043,190.53,190.46,7.69843043]
[1735754289410,2.98,190.52,190.46,7.69843043]
[1735754289805,2.6301,190.5,190.46,7.69843043]
[1735754299627,2.98,190.52,190.46,7.69843043]
[1735754300825,2.6301,190.5,190.46,7.69843043]
[1735754303333,2.6301,190.5,190.45,7.69843043]
[1735754305427,2.63,190.5,190.45,7.69843043]
[1735754305626,7.69843043,190.5,190.43,7.69843043]
[1735754305837,7.69843043,190.48,190.4,7.69843043]
[1735754306133,2.6308,190.45,190.4,7.69843043]
[1735754306327,7.69843043,190.46,190.4,7.69843043]
[1735754307533,2.6309,190.44,190.4,7.69843043]
[1735754310033,10.32903043,190.46,190.4,7.69843043]
[1735754310336,2.6306,190.46,190.42,7.69843043]
[1735754311632,5.6104,190.47,190.42,7.69843043]
[1735754315131,2.6304,190.47,190.42,7.69843043]
[1735754316840,2.6304,190.47,190.44,7.69843043]
[1735754318439,20.31631453,190.5,190.44,7.69843043]
[1735754318639,2.6303,190.48,190.44,7.69843043]
[1735754328547,2.6303,190.48,190.41,2.98]
[1735754328745,2.6303,190.48,190.44,7.69843043]
[1735754329944,7.69843043,190.48,190.42,7.69843043]
[1735754330648,7.69843043,190.48,190.38,2.98]
[1735754330845,7.69843043,190.48,190.4,7.69843043]
[1735754331349,2.6309,190.44,190.4,7.69843043]
[1735754331547,7.69843043,190.46,190.36,2.98]
[1735754331748,10.67843043,190.46,190.4,7.69843043]
[1735754332648,2.6308,190.45,190.4,7.69843043]
[1735754335651,2.6309,190.44,190.4,7.69843043]
[1735754340743,2.98,190.46,190.42,7.69843043]
[1735754341356,5.6106,190.46,190.42,7.69843043]
[1735754342851,2.6306,190.46,190.42,7.69843043]
[1735754344461,9.6378841,190.48,190.42,7.69843043]
[1735754344658,9.6378841,190.48,190.46,7.69843043]
[1735754344957,146.55495136,190.53,190.47,2.98]
[1735754345149,9.67740798,190.52,190.47,2.98]
[1735754345855,12.24809393,190.57,190.47,2.98]
[1735754346049,12.24809393,190.57,190.52,7.69843043]
[1735754346247,5.58839288,190.57,190.52,7.69843043]
[1735754346756,1.641,190.57,190.52,7.69843043]
[1735754347452,2.6292,190.56,190.52,7.69843043]
[1735754350764,1.641,190.57,190.52,7.69843043]
[1735754350964,2.6295,190.54,190.52,7.69843043]
[1735754351161,2.6295,190.54,190.5,7.69843043]
[1735754353860,2.6297,190.52,190.48,7.69843043]
[1735754356266,7.69843043,190.55,190.48,7.69843043]
[1735754356565,1.641,190.57,190.52,7.69843043]
[1735754357161,1.641,190.57,190.47,2.98]
[1735754357162,1.641,190.57,190.54,7.69843043]
[1735754357564,1.6093,190.59,190.54,7.69843043]
[1735754357964,1.6093,190.59,190.56,7.69843043]
[1735754358564,2.6285,190.61,190.56,7.69843043]
[1735754359271,2.6285,190.61,190.58,7.69843043]
[1735754359658,10.79113043,190.64,190.58,7.69843043]
[1735754359861,2.6283,190.63,190.58,7.69843043]
[1735754360267,10.79113043,190.64,190.58,7.69843043]
[1735754360664,1.5377,190.64,190.6,7.69843043]
[1735754364469,4.1658,190.64,190.6,7.69843043]
[1735754364671,4.1658,190.64,190.51,2.98523636]
[1735754364672,1.5377,190.64,190.58,2.98]
[1735754364866,1.5377,190.64,190.58,10.67843043]
[1735754365063,4.1659,190.64,190.58,10.67843043]
[1735754365569,2.6282,190.64,190.6,7.69843043]
[1735754365769,1.5742,190.67,190.62,7.69843043]
[1735754368071,1.5742,190.67,190.58,2.98]
[1735754368368,1.5742,190.67,190.6,7.69843043]
[1735754368573,1.5742,190.67,190.58,2.98]
[1735754368574,1.5742,190.67,190.62,7.69843043]
[1735754370067,1.5742,190.67,190.63,2.96]
[1735754371774,1.5742,190.67,190.64,7.69843043]
[1735754373177,1.5742,190.67,190.62,7.69843043]
[1735754373771,4.2019,190.67,190.62,7.69843043]
[1735754375470,2.628,190.65,190.6,7.69843043]
[1735754375875,7.69843043,190.69,190.62,7.69843043]
[1735754376475,2.6278,190.67,190.62,7.69843043]
[1735754376875,7.69843043,190.7,190.64,7.69843043]
[1735754378476,2.6274,190.69,190.64,7.69843043]
[1735754383273,2.6273,190.7,190.64,7.69843043]
[1735754383471,2.6273,190.7,190.66,7.69843043]
[1735754386575,2.6271,190.72,190.66,7.69843043]
[1735754388380,2.6271,190.71,190.66,7.69843043]
[1735754391688,2.6273,190.7,190.66,7.69843043]
[1735754393783,7.69843043,190.72,190.65,2.96]
[1735754393986,2.6274,190.69,190.65,10.65843043]
[1735754395185,2.6274,190.69,190.65,7.69843043]
[1735754395585,7.69843043,190.72,190.65,7.69843043]
[1735754395786,2.6275,190.68,190.65,7.69843043]
[1735754397091,7.69843043,190.72,190.65,7.69843043]
[1735754397286,2.6274,190.69,190.65,7.69843043]
[1735754398092,2.6274,190.69,190.66,7.69843043]
[1735754400998,2.6274,190.69,190.63,2.96]
[1735754400999,10.56352819,190.71,190.68,7.69843043]
[1735754401183,10.56352819,190.72,190.68,7.69843043]
[1735754401988,3.94401416,190.72,190.68,7.69843043]
[1735754402195,10.58004829,190.72,190.68,7.69843043]
[1735754402689,6.63603413,190.72,190.68,7.69843043]
[1735754403088,6.63603413,190.73,190.68,7.69843043]
[1735754403293,151.16205136,190.74,190.68,7.69843043]
[1735754403692,7.69843043,190.72,190.66,7.69843043]
[1735754403894,7.69843043,190.72,190.64,7.69843043]
[1735754404201,2.6275,190.69,190.64,7.69843043]
[1735754404694,3.94363737,190.71,190.64,7.69843043]
[1735754404894,2.6273,190.7,190.64,7.69843043]
[1735754405892,2.6273,190.7,190.66,7.69843043]
[1735754407299,2.6271,190.71,190.66,7.69843043]
[1735754407495,10.59180806,190.73,190.68,7.69843043]
[1735754407696,146.55495136,190.77,190.7,7.69843043]
[1735754407895,2.6267,190.75,190.7,7.69843043]
[1735754412601,2.6267,190.75,190.67,2.96]
[1735754412802,2.6267,190.75,190.69,7.69843043]
[1735754413404,2.6267,190.75,190.71,7.69843043]
[1735754417504,6.56888979,190.76,190.71,7.69843043]
[1735754417699,2.6264,190.76,190.71,7.69843043]
[1735754418299,9.25624371,190.77,190.71,7.69843043]
[1735754418498,2.6263,190.77,190.71,7.69843043]
[1735754418703,10.89173043,190.78,190.71,7.69843043]
[1735754418909,13.51793043,190.78,190.73,7.69843043]
[1735754419307,5.8195,190.78,190.73,7.69843043]
[1735754420100,2.6264,190.76,190.67,2.96]
[1735754420301,3.1933,190.78,190.71,7.69843043]
[1735754420709,2.6264,190.76,190.71,7.69843043]
[1735754421512,2.6264,190.76,190.72,7.69843043]
[1735754430409,5.8196,190.78,190.72,7.69843043]
[1735754430612,3.1933,190.78,190.74,7.69843043]
[1735754430806,1.4935,190.81,190.76,7.69843043]
[1735754431817,4.1193,190.81,190.76,7.69843043]
[1735754432611,1.4935,190.81,190.76,7.69843043]
[1735754432812,7.69843043,190.78,190.64,2.98401209]
[1735754433015,7.69843043,190.74,190.68,7.69843043]
[1735754433213,13.524214,190.8,190.72,7.69843043]
[1735754433410,7.69843043,190.79,190.72,7.69843043]
[1735754434015,2.6264,190.76,190.65,2.96]
[1735754434219,2.6264,190.76,190.72,7.69843043]
[1735754434418,7.69843043,190.79,190.72,7.69843043]
[1735754434618,2.6262,190.78,190.72,7.69843043]
[1735754436212,2.626,190.79,190.74,7.69843043]
[1735754437521,5.6881,190.8,190.74,7.69843043]
[1735754437721,5.6881,190.8,190.76,7.69843043]
[1735754440021,5.6881,190.8,190.7,2.96]
[1735754440217,5.6881,190.8,190.76,7.69843043]
[1735754440823,3.0622,190.8,190.76,7.69843043]
[1735754441022,2.6261,190.79,190.76,7.69843043]
[1735754442921,3.0622,190.8,190.76,7.69843043]
[1735754443226,10.76063043,190.8,190.74,7.69843043]
[1735754444125,2.6266,190.75,190.74,7.69843043]
[1735754444426,10.65843043,190.78,190.64,2.98401209]
[1735754444621,7.69843043,190.76,190.68,7.69843043]
[1735754444822,7.69843043,190.74,190.68,7.69843043]
[1735754445126,2.627,190.72,190.68,7.69843043]
[1735754445425,6.1472,190.73,190.68,7.69843043]
[1735754445822,2.6273,190.7,190.68,7.69843043]
[1735754446426,2.6274,190.69,190.68,7.69843043]
[1735754446818,7.69843043,190.72,190.64,2.98401209]
[1735754447018,7.69843043,190.72,190.64,10.68244252]
[1735754447224,1.5441,190.71,190.64,10.68244252]
[1735754448229,2.6276,190.68,190.64,10.68244252]
[1735754448825,7.69843043,190.7,190.64,10.68244252]
[1735754449227,2.6283,190.63,190.51,29.14231316]
[1735754449433,1.5441,190.71,190.59,7.69843043]
[1735754449434,10.65843043,190.66,190.59,7.69843043]
[1735754449627,2.96,190.66,190.61,7.69843043]
[1735754449828,2.6282,190.63,190.61,7.69843043]
[1735754450435,2.628,190.65,190.61,7.69843043]
[1735754450934,2.96,190.66,190.63,7.69843043]
[1735754451834,2.6278,190.66,190.63,7.69843043]
[1735754452233,10.65843043,190.68,190.63,7.69843043]
[1735754452934,2.96,190.68,190.63,7.69843043]
[1735754453136,2.6281,190.64,190.63,7.69843043]
[1735754453336,2.96,190.68,190.51,2.98490423]
[1735754453337,10.65843043,190.68,190.61,7.69843043]
[1735754453739,2.6284,190.62,190.61,7.69843043]
[1735754454536,2.6285,190.61,190.59,7.69843043]
[1735754455339,2.6284,190.62,190.59,7.69843043]
[1735754456437,2.6286,190.6,190.59,7.69843043]
[1735754457432,3.0156,190.65,190.59,7.69843043]
[1735754457639,3.0156,190.65,190.62,7.69843043]